fUSD/lending_fUSD_20260613
["ID","MTS","AMOUNT","RATE_DAILY","PERIOD"]
[424931986,1781291438000,-500.0,8.802e-05,2]
[424931993,1781291438000,-555.624051,8.803e-05,2]
[424931991,1781291438000,-1889.20943443,8.803e-05,2]
[424931995,1781291438000,-2043.0,8.803e-05,2]
[424931992,1781291438000,-762.15,8.803e-05,2]
[424931985,1781291438000,-602.22181582,8.802e-05,2]
[424931994,1781291438000,-1554.37572192,8.803e-05,2]
[424931990,1781291438000,-500.0,8.802e-05,2]
[424931987,1781291438000,-411.87874344,8.802e-05,2]
[424931989,1781291438000,-280.90030759,8.802e-05,2]
[424932083,1781291440000,-31357.73447246,8.803e-05,2]
[424932082,1781291440000,-5277.58322911,8.803e-05,2]
[424932081,1781291440000,-344.420945,8.803e-05,2]
[424932079,1781291440000,-410.295,8.803e-05,2]
[424932077,1781291440000,-351.16783329,8.803e-05,2]
[424932078,1781291440000,-2812.32752635,8.803e-05,2]
[424932088,1781291443000,-3302.55053612,8.803e-05,2]
[424932089,1781291443000,-316.220239,8.803e-05,2]
[424932090,1781291443000,-6050.54571813,8.803e-05,2]
[424932091,1781291443000,-794.21926914,8.803e-05,2]
[424932093,1781291443000,-2489.9678,8.803e-05,2]
[424932094,1781291443000,-948.15358358,8.803e-05,2]
[424932099,1781291443000,-668.26797358,8.803e-05,2]
[424932092,1781291443000,-924.23968249,8.803e-05,2]
[424932113,1781291446000,-2552.40370494,8.803e-05,2]
[424932114,1781291446000,-171009.75812546,8.805e-05,2]
[424932112,1781291446000,-3645.00397564,8.803e-05,2]
[424932111,1781291446000,-747.51011329,8.803e-05,2]
[424932116,1781291491000,-151.0,8.802e-05,2]
[424932117,1781291536000,-373.07224438,8.803e-05,2]
[424932118,1781291589000,-9999.99,8.802e-05,2]
[424932119,1781291590000,200.0,8.6e-05,3]
[424932120,1781291590000,500.0,8.7e-05,3]
[424932121,1781291590000,800.0,8.8e-05,3]
[424932122,1781291590000,1100.0,8.9e-05,3]
[424932123,1781291590000,1400.0,9e-05,3]
[424932124,1781291612000,-250.0,8.65e-05,2]
[424932125,1781291666000,-160.0,8.802e-05,2]
[424932126,1781291719000,-1751.46,8.802e-05,2]
[424932127,1781291745000,-1230.80436875,8.801e-05,2]
[424932128,1781291798000,-1230.80436875,8.801e-05,2]
[424932130,1781291851000,-473.67,8.319e-05,2]
[424932135,1781291905000,-183.8034,8.703e-05,2]
[424932139,1781292079000,-500.0,8.219e-05,2]
[424932140,1781292102000,-500.0,8.219e-05,2]
[424932141,1781292124000,-550.0,8.159e-05,2]
[424932142,1781292149000,-198.38,8.159e-05,2]
[424932143,1781292202000,-443.81,8.159e-05,2]
[424932144,1781292255000,-500.0,8.117e-05,2]
[424932145,1781292277000,-500.0,8.117e-05,2]
[424932146,1781292299000,-500.0,8.117e-05,2]
[424932147,1781292323000,-500.0,8.117e-05,2]
[424932148,1781292345000,-437.5,8.117e-05,2]
[424932159,1781292346000,-164.9656626,8.524e-05,2]
[424932158,1781292346000,-232.49014842,8.524e-05,2]
[424932157,1781292346000,-223.21758179,8.524e-05,2]
[424932155,1781292346000,-155.22117655,8.524e-05,2]
[424932156,1781292346000,-500.0,8.524e-05,2]
[424932153,1781292346000,-150.0,8.524e-05,2]
[424932154,1781292346000,-500.0,8.524e-05,2]
[424932152,1781292346000,-150.0,8.462e-05,2]
[424932151,1781292346000,-165.87,8.246e-05,2]
[424932149,1781292346000,-193.98753391,8.168e-05,2]
[424932150,1781292346000,-487.99,8.219e-05,2]
[424932163,1781292454000,-336.08904582,8.474e-05,2]
[424932164,1781292454000,-32.86628845,8.474e-05,2]
[424932162,1781292454000,-150.0,8.473e-05,2]
[424932166,1781292510000,-467.13371155,8.474e-05,2]
[424932167,1781292564000,-461.01007,8.473e-05,2]
[424932207,1781292565000,-811.89106053,8.473e-05,2]
[424932185,1781292565000,-811.89106053,8.473e-05,2]
[424932182,1781292565000,-811.89106053,8.473e-05,2]
[424932184,1781292565000,-811.89106053,8.473e-05,2]
[424932183,1781292565000,-811.89106053,8.473e-05,2]
[424932181,1781292565000,-811.89106053,8.473e-05,2]
[424932180,1781292565000,-811.89106053,8.473e-05,2]
[424932177,1781292565000,-500.0,8.473e-05,2]
[424932178,1781292565000,-256.53220928,8.473e-05,2]
[424932187,1781292565000,-811.89106053,8.473e-05,2]
[424932179,1781292565000,-811.89106053,8.473e-05,2]
[424932206,1781292565000,-811.89106053,8.473e-05,2]
[424932173,1781292565000,-247.2409811,8.473e-05,2]
[424932175,1781292565000,-500.0,8.473e-05,2]
[424932172,1781292565000,-188.31512041,8.473e-05,2]
[424932170,1781292565000,-156.25230725,8.473e-05,2]
[424932169,1781292565000,-162.7431039,8.473e-05,2]
[424932171,1781292565000,-500.0,8.473e-05,2]
[424932168,1781292565000,-500.0,8.473e-05,2]
[424932176,1781292565000,-500.0,8.473e-05,2]
[424932188,1781292565000,-811.89106053,8.473e-05,2]
[424932174,1781292565000,-500.0,8.473e-05,2]
[424932189,1781292565000,-811.89106053,8.473e-05,2]
[424932186,1781292565000,-811.89106053,8.473e-05,2]
[424932209,1781292565000,-811.89106053,8.473e-05,2]
[424932208,1781292565000,-811.89106053,8.473e-05,2]
[424932204,1781292565000,-811.89106053,8.473e-05,2]
[424932203,1781292565000,-811.89106053,8.473e-05,2]
[424932205,1781292565000,-811.89106053,8.473e-05,2]
[424932202,1781292565000,-811.89106053,8.473e-05,2]
[424932201,1781292565000,-811.89106053,8.473e-05,2]
[424932199,1781292565000,-811.89106053,8.473e-05,2]
[424932200,1781292565000,-811.89106053,8.473e-05,2]
[424932195,1781292565000,-811.89106053,8.473e-05,2]
[424932197,1781292565000,-811.89106053,8.473e-05,2]
[424932196,1781292565000,-811.89106053,8.473e-05,2]
[424932194,1781292565000,-811.89106053,8.473e-05,2]
[424932193,1781292565000,-811.89106053,8.473e-05,2]
[424932192,1781292565000,-811.89106053,8.473e-05,2]
[424932190,1781292565000,-811.89106053,8.473e-05,2]
[424932191,1781292565000,-811.89106053,8.473e-05,2]
[424932198,1781292565000,-811.89106053,8.473e-05,2]
[424932214,1781292566000,-275.79890849,8.473e-05,2]
[424932210,1781292566000,-811.89106053,8.473e-05,2]
[424932211,1781292566000,-811.89106053,8.473e-05,2]
[424932212,1781292566000,-811.89106053,8.473e-05,2]
[424932213,1781292566000,-536.09215204,8.473e-05,2]
[424932215,1781292566000,-811.89106053,8.473e-05,2]
[424932219,1781292566000,-811.89106053,8.473e-05,2]
[424932218,1781292566000,-811.89106053,8.473e-05,2]
[424932217,1781292566000,-811.89106053,8.473e-05,2]
[424932220,1781292566000,-811.89106053,8.473e-05,2]
[424932221,1781292566000,-811.89106053,8.473e-05,2]
[424932222,1781292566000,-587.61555351,8.473e-05,2]
[424932216,1781292566000,-811.89106053,8.473e-05,2]
[424932234,1781292567000,-935.6529535,8.473e-05,2]
[424932232,1781292567000,-935.6529535,8.473e-05,2]
[424932233,1781292567000,-935.6529535,8.473e-05,2]
[424932229,1781292567000,-935.6529535,8.473e-05,2]
[424932230,1781292567000,-935.6529535,8.473e-05,2]
[424932226,1781292567000,-811.89106053,8.473e-05,2]
[424932228,1781292567000,-935.6529535,8.473e-05,2]
[424932225,1781292567000,-811.89106053,8.473e-05,2]
[424932223,1781292567000,-224.27550702,8.473e-05,2]
[424932224,1781292567000,-811.89106053,8.473e-05,2]
[424932227,1781292567000,-811.89106053,8.473e-05,2]
[424932235,1781292567000,-935.6529535,8.473e-05,2]
[424932231,1781292567000,-935.6529535,8.473e-05,2]
[424932237,1781292567000,-935.6529535,8.473e-05,2]
[424932238,1781292567000,-935.6529535,8.473e-05,2]
[424932240,1781292567000,-935.6529535,8.473e-05,2]
[424932239,1781292567000,-935.6529535,8.473e-05,2]
[424932242,1781292567000,-935.6529535,8.473e-05,2]
[424932241,1781292567000,-935.6529535,8.473e-05,2]
[424932244,1781292567000,-935.6529535,8.473e-05,2]
[424932243,1781292567000,-935.6529535,8.473e-05,2]
[424932245,1781292567000,-935.6529535,8.473e-05,2]
[424932246,1781292567000,-935.6529535,8.473e-05,2]
[424932248,1781292567000,-935.6529535,8.473e-05,2]
[424932247,1781292567000,-935.6529535,8.473e-05,2]
[424932236,1781292567000,-935.6529535,8.473e-05,2]
[424932250,1781292568000,-935.6529535,8.473e-05,2]
[424932252,1781292568000,-935.6529535,8.473e-05,2]
[424932249,1781292568000,-935.6529535,8.473e-05,2]
[424932254,1781292568000,-935.6529535,8.473e-05,2]
[424932251,1781292568000,-935.6529535,8.473e-05,2]
[424932255,1781292568000,-357.2070157,8.473e-05,2]
[424932253,1781292568000,-935.6529535,8.473e-05,2]
[424932256,1781292618000,-578.4459378,8.473e-05,2]
[424932257,1781292618000,-935.6529535,8.473e-05,2]
[424932258,1781292618000,-935.6529535,8.473e-05,2]
[424932259,1781292618000,-943.45006147,8.473e-05,2]
[424932261,1781292618000,-294.64606284,8.473e-05,2]
[424932263,1781292618000,-943.45006147,8.473e-05,2]
[424932262,1781292618000,-943.45006147,8.473e-05,2]
[424932264,1781292618000,-88.34114894,8.473e-05,2]
[424932260,1781292618000,-648.80399863,8.473e-05,2]
[424932293,1781292632000,-500.0,8.475e-05,2]
[424932286,1781292632000,-500.0,8.475e-05,2]
[424932295,1781292632000,-500.0,8.475e-05,2]
[424932296,1781292632000,-500.0,8.475e-05,2]
[424932290,1781292632000,-500.0,8.475e-05,2]
[424932288,1781292632000,-500.0,8.475e-05,2]
[424932301,1781292632000,-500.0,8.475e-05,2]
[424932292,1781292632000,-500.0,8.475e-05,2]
[424932294,1781292632000,-500.0,8.475e-05,2]
[424932291,1781292632000,-544.56840726,8.475e-05,2]
[424932299,1781292632000,-500.0,8.475e-05,2]
[424932297,1781292632000,-500.0,8.475e-05,2]
[424932302,1781292632000,-500.0,8.475e-05,2]
[424932289,1781292632000,-500.0,8.475e-05,2]
[424932298,1781292632000,-500.0,8.475e-05,2]
[424932278,1781292632000,-943.45006143,8.473e-05,2]
[424932282,1781292632000,-500.0,8.475e-05,2]
[424932281,1781292632000,-504.63623623,8.475e-05,2]
[424932279,1781292632000,-461.01006998,8.474e-05,2]
[424932285,1781292632000,-500.0,8.475e-05,2]
[424932300,1781292632000,-500.0,8.475e-05,2]
[424932276,1781292632000,-375.352,8.473e-05,2]
[424932284,1781292632000,-500.0,8.475e-05,2]
[424932280,1781292632000,-500.0,8.475e-05,2]
[424932277,1781292632000,-522.94085694,8.473e-05,2]
[424932275,1781292632000,-45.15720453,8.473e-05,2]
[424932274,1781292632000,-355.36103547,8.473e-05,2]
[424932273,1781292632000,-588.089026,8.473e-05,2]
[424932272,1781292632000,-943.45006147,8.473e-05,2]
[424932271,1781292632000,-855.10891253,8.473e-05,2]
[424932287,1781292632000,-500.0,8.475e-05,2]
[424932303,1781292632000,-500.0,8.475e-05,2]
[424932283,1781292632000,-500.0,8.475e-05,2]
[424932309,1781292632000,-500.0,8.475e-05,2]
[424932344,1781292632000,-1156.56160358,8.648e-05,2]
[424932345,1781292632000,-1186.51322754,8.648e-05,2]
[424932338,1781292632000,-179.0070577,8.475e-05,2]
[424932342,1781292632000,-1751.46,8.635e-05,2]
[424932343,1781292632000,-198058.21274096,8.648e-05,2]
[424932340,1781292632000,-500.0,8.475e-05,2]
[424932339,1781292632000,-461.01006998,8.475e-05,2]
[424932341,1781292632000,-523.7916,8.602e-05,2]
[424932337,1781292632000,-500.0,8.475e-05,2]
[424932335,1781292632000,-500.0,8.475e-05,2]
[424932336,1781292632000,-500.0,8.475e-05,2]
[424932331,1781292632000,-150.0,8.475e-05,2]
[424932328,1781292632000,-500.0,8.475e-05,2]
[424932333,1781292632000,-500.0,8.475e-05,2]
[424932329,1781292632000,-350.0,8.475e-05,2]
[424932346,1781292632000,-632.00874465,8.648e-05,2]
[424932327,1781292632000,-500.0,8.475e-05,2]
[424932326,1781292632000,-316.62019818,8.475e-05,2]
[424932317,1781292632000,-500.0,8.475e-05,2]
[424932313,1781292632000,-500.0,8.475e-05,2]
[424932307,1781292632000,-350.0,8.475e-05,2]
[424932311,1781292632000,-150.0,8.475e-05,2]
[424932319,1781292632000,-500.0,8.475e-05,2]
[424932323,1781292632000,-500.0,8.475e-05,2]
[424932305,1781292632000,-500.0,8.475e-05,2]
[424932315,1781292632000,-500.0,8.475e-05,2]
[424932325,1781292632000,-500.0,8.475e-05,2]
[424932334,1781292632000,-500.0,8.475e-05,2]
[424932321,1781292632000,-500.0,8.475e-05,2]
[424932330,1781292632000,-150.0,8.475e-05,2]
[424932332,1781292632000,-150.0,8.475e-05,2]
[424932324,1781292632000,-500.0,8.475e-05,2]
[424932349,1781292638000,-489.23389195,8.648e-05,2]
[424932351,1781292639000,-2004.79576993,8.648e-05,2]
[424932350,1781292639000,-934.42705974,8.648e-05,2]
[424932513,1781292642000,-35018.09220063,8.648e-05,2]
[424932512,1781292642000,-2385.515,8.375e-05,2]
[424932517,1781292642000,-2755.42374962,8.648e-05,2]
[424932516,1781292642000,-360.11324534,8.648e-05,2]
[424932518,1781292642000,-624.78823798,8.648e-05,2]
[424932515,1781292642000,-677.0,8.648e-05,2]
[424932520,1781292642000,-154.61545023,8.648e-05,2]
[424932519,1781292642000,-447.1571751,8.648e-05,2]
[424932514,1781292642000,-794.90713804,8.648e-05,2]
[424932523,1781292643000,-178658.11164579,8.648e-05,2]
[424932522,1781292643000,-762551.8278178,8.648e-05,2]
[424932527,1781292646000,-1303.27365441,8.648e-05,2]
[424932526,1781292646000,-50639.66947704,8.648e-05,2]
[424932529,1781292671000,-2005.9555727,8.648e-05,2]
[424932532,1781292672000,193.0,5.5e-05,2]
[424932531,1781292672000,150.0,6.824e-05,2]
[424932530,1781292672000,200.0,5e-05,30]
[424932533,1781292672000,250.0,5.5e-05,2]
[424932534,1781292680000,150.0,8.347e-05,2]
[424932536,1781292746000,-2000.0,8.548e-05,2]
[424932537,1781292770000,-500.0,8.548e-05,2]
[424932541,1781292820000,-1855.9555727,8.548e-05,2]
[424932543,1781292844000,-535.35,8.493e-05,2]
[424932544,1781292846000,160.89,5e-05,120]
[424932545,1781292895000,-1490.6,8.219e-05,2]
[424932546,1781292924000,1485.0,8.886e-05,5]
[424932547,1781293108000,-335.27,7.614e-05,2]
[424932548,1781293161000,-795.0298741,7.652e-05,2]
[424932549,1781293183000,-678.03937272,7.652e-05,2]
[424932550,1781293206000,-526.93075318,7.652e-05,2]
[424932551,1781293259000,-741.48,7.708e-05,2]
[424932552,1781293312000,-174.99,7.631e-05,2]
[424932553,1781293367000,-153.77772756,7.671e-05,2]
[424932554,1781293419000,-200.0,7.715e-05,2]
[424932556,1781293473000,-777.13,7.616e-05,2]
[424932557,1781293526000,-1550.30063989,7.715e-05,2]
[424932558,1781293531000,1725.0,8.886e-05,5]
[424932564,1781293558000,-234.96155697,8.237e-05,2]
[424932563,1781293558000,-500.0,8.237e-05,2]
[424932561,1781293558000,-161.0,8.236e-05,2]
[424932562,1781293558000,-150.0,8.236e-05,2]
[424932560,1781293558000,-156.9,8.219e-05,2]
[424932559,1781293558000,-159.88,7.817e-05,2]
[424932568,1781293640000,-184.11460084,8.236e-05,2]
[424932567,1781293640000,-256.39698396,8.236e-05,2]
[424932566,1781293640000,-544.68,7.7e-05,2]
[424932569,1781293645000,-157.73017585,8.236e-05,2]
[424932570,1781293719000,-150.0,8.235e-05,2]
[424932573,1781293745000,-500.0,8.235e-05,2]
[424932578,1781293745000,-500.0,8.235e-05,2]
[424932572,1781293745000,-500.0,8.235e-05,2]
[424932574,1781293745000,-500.0,8.235e-05,2]
[424932575,1781293745000,-500.0,8.235e-05,2]
[424932576,1781293745000,-500.0,8.235e-05,2]
[424932577,1781293745000,-500.0,8.235e-05,2]
[424932571,1781293745000,-1947.61,7.639e-05,2]
[424932579,1781293745000,-500.0,8.235e-05,2]
[424932587,1781293745000,-500.0,8.235e-05,2]
[424932581,1781293745000,-500.0,8.235e-05,2]
[424932582,1781293745000,-500.0,8.235e-05,2]
[424932583,1781293745000,-500.0,8.235e-05,2]
[424932584,1781293745000,-500.0,8.235e-05,2]
[424932585,1781293745000,-368.868762,8.235e-05,2]
[424932586,1781293745000,-131.131238,8.235e-05,2]
[424932588,1781293745000,-500.0,8.235e-05,2]
[424932589,1781293745000,-500.0,8.235e-05,2]
[424932580,1781293745000,-500.0,8.235e-05,2]
[424932590,1781293746000,-500.0,8.235e-05,2]
[424932591,1781293746000,-500.0,8.235e-05,2]
[424932592,1781293746000,-398.69741817,8.235e-05,2]
[424932594,1781293746000,-136.03861266,8.235e-05,2]
[424932593,1781293746000,-363.96138734,8.235e-05,2]
[424932595,1781293746000,-500.0,8.235e-05,2]
[424932598,1781293746000,-500.0,8.235e-05,2]
[424932597,1781293746000,-500.0,8.235e-05,2]
[424932599,1781293746000,-266.15392891,8.235e-05,2]
[424932596,1781293746000,-500.0,8.235e-05,2]
[424932600,1781293748000,-200.0,7.639e-05,2]
[424932601,1781293772000,-233.84607109,8.235e-05,2]
[424932610,1781293773000,-42.2525457,8.219e-05,2]
[424932602,1781293773000,-500.0,8.219e-05,2]
[424932603,1781293773000,-500.0,8.219e-05,2]
[424932604,1781293773000,-479.895561,8.219e-05,2]
[424932606,1781293773000,-332.55935141,8.219e-05,2]
[424932605,1781293773000,-20.104439,8.219e-05,2]
[424932607,1781293773000,-167.44064859,8.219e-05,2]
[424932608,1781293773000,-390.16311393,8.219e-05,2]
[424932611,1781293773000,-457.7474543,8.219e-05,2]
[424932609,1781293773000,-109.83688607,8.219e-05,2]
[424932613,1781293773000,-152.08943177,8.219e-05,2]
[424932614,1781293773000,-153.01588694,8.219e-05,2]
[424932622,1781293773000,-500.0,8.219e-05,2]
[424932615,1781293773000,-172.99419116,8.219e-05,2]
[424932616,1781293773000,-69.83875667,8.219e-05,2]
[424932618,1781293773000,-87.17037937,8.219e-05,2]
[424932617,1781293773000,-430.16124333,8.219e-05,2]
[424932619,1781293773000,-412.82962063,8.219e-05,2]
[424932620,1781293773000,-500.0,8.219e-05,2]
[424932621,1781293773000,-500.0,8.219e-05,2]
[424932612,1781293773000,-21.90049013,8.219e-05,2]
[424932637,1781293774000,-500.0,8.235e-05,2]
[424932638,1781293774000,-500.0,8.235e-05,2]
[424932639,1781293774000,-500.0,8.235e-05,2]
[424932640,1781293774000,-500.0,8.235e-05,2]
[424932645,1781293774000,-223.06868677,8.237e-05,2]
[424932643,1781293774000,-250.0,8.235e-05,2]
[424932642,1781293774000,-500.0,8.235e-05,2]
[424932644,1781293774000,-265.03844303,8.237e-05,2]
[424932636,1781293774000,-500.0,8.235e-05,2]
[424932641,1781293774000,-500.0,8.235e-05,2]
[424932633,1781293774000,-500.0,8.219e-05,2]
[424932630,1781293774000,-500.0,8.219e-05,2]
[424932634,1781293774000,-500.0,8.219e-05,2]
[424932631,1781293774000,-500.0,8.219e-05,2]
[424932632,1781293774000,-500.0,8.219e-05,2]
[424932628,1781293774000,-397.37892481,8.219e-05,2]
[424932629,1781293774000,-150.0,8.219e-05,2]
[424932627,1781293774000,-500.0,8.219e-05,2]
[424932626,1781293774000,-202.32764356,8.219e-05,2]
[424932625,1781293774000,-500.0,8.219e-05,2]
[424932624,1781293774000,-500.0,8.219e-05,2]
[424932623,1781293774000,-500.0,8.219e-05,2]
[424932650,1781293774000,-500.0,8.239e-05,2]
[424932635,1781293774000,-412.15143745,8.219e-05,2]
[424932647,1781293774000,-500.0,8.237e-05,2]
[424932646,1781293774000,-447.97758912,8.237e-05,2]
[424932651,1781293774000,-430.0,8.239e-05,2]
[424932674,1781293774000,-430.95343864,8.239e-05,2]
[424932670,1781293774000,-430.0,8.239e-05,2]
[424932673,1781293774000,-430.0,8.239e-05,2]
[424932672,1781293774000,-430.0,8.239e-05,2]
[424932671,1781293774000,-430.0,8.239e-05,2]
[424932669,1781293774000,-430.0,8.239e-05,2]
[424932667,1781293774000,-430.0,8.239e-05,2]
[424932668,1781293774000,-430.0,8.239e-05,2]
[424932648,1781293774000,-150.0,8.238e-05,2]
[424932666,1781293774000,-430.0,8.239e-05,2]
[424932664,1781293774000,-430.0,8.239e-05,2]
[424932663,1781293774000,-430.0,8.239e-05,2]
[424932665,1781293774000,-430.0,8.239e-05,2]
[424932662,1781293774000,-430.0,8.239e-05,2]
[424932649,1781293774000,-853.163,8.238e-05,2]
[424932661,1781293774000,-430.0,8.239e-05,2]
[424932654,1781293774000,-430.0,8.239e-05,2]
[424932653,1781293774000,-430.0,8.239e-05,2]
[424932656,1781293774000,-430.0,8.239e-05,2]
[424932652,1781293774000,-430.0,8.239e-05,2]
[424932657,1781293774000,-430.0,8.239e-05,2]
[424932659,1781293774000,-430.0,8.239e-05,2]
[424932658,1781293774000,-430.0,8.239e-05,2]
[424932660,1781293774000,-430.0,8.239e-05,2]
[424932655,1781293774000,-430.0,8.239e-05,2]
[424932676,1781293775000,-150.0,8.402e-05,2]
[424932675,1781293775000,-150.0,8.319e-05,2]
[424932678,1781293775000,-573.34350821,8.403e-05,2]
[424932677,1781293775000,-250.0,8.403e-05,2]
[424932679,1781293775000,-300.0,8.403e-05,2]
[424932680,1781293775000,-330.07362027,8.403e-05,2]
[424932681,1781293775000,-250.0,8.438e-05,2]
[424932683,1781293775000,-150.0,8.484e-05,2]
[424932682,1781293775000,-578.5051,8.448e-05,2]
[424932685,1781293775000,-277.12491811,8.487e-05,2]
[424932686,1781293775000,-387.0,8.489e-05,2]
[424932687,1781293775000,-384.3903,8.505e-05,2]
[424932688,1781293775000,-500.0,8.513e-05,2]
[424932690,1781293775000,-650.21889954,8.515e-05,2]
[424932689,1781293775000,-4024.57480987,8.515e-05,2]
[424932691,1781293775000,-222.63972367,8.518e-05,2]
[424932692,1781293775000,-267.94,8.53e-05,2]
[424932684,1781293775000,-300.0,8.487e-05,2]
[424932693,1781293776000,-899.90311098,8.547e-05,2]
[424932694,1781293776000,-24559.18411479,8.548e-05,2]
[424932695,1781293779000,3875.52313962,8.357e-05,2]
[424932696,1781293779000,9148.1326296,8.357e-05,2]
[424932699,1781293797000,-2406.49116885,8.407e-05,2]
[424932697,1781293797000,-1079.43425261,8.357e-05,2]
[424932698,1781293797000,-2430.27544261,8.407e-05,2]
[424932700,1781293825000,-3168.52757685,8.407e-05,2]
[424933640,1781293848000,-3168.52757685,8.407e-05,2]
[424933642,1781293848000,-5707.9385273,8.407e-05,2]
[424933641,1781293848000,-1160.88,8.407e-05,2]
[424933643,1781293848000,-160.0,8.407e-05,2]
[424933645,1781293848000,-171.91306596,8.605e-05,2]
[424933646,1781293848000,-171.91306595,8.605e-05,2]
[424933653,1781293848000,-3209.82391698,8.639e-05,2]
[424933647,1781293848000,-228612.86355939,8.639e-05,2]
[424933648,1781293848000,-137353.3541607,8.639e-05,2]
[424933649,1781293848000,-184549.68903448,8.639e-05,2]
[424933650,1781293848000,-214938.41986783,8.639e-05,2]
[424933651,1781293848000,-15518.32618538,8.639e-05,2]
[424933652,1781293848000,-1254.41808677,8.639e-05,2]
[424933644,1781293848000,-154.87243249,8.548e-05,2]
[424933655,1781293849000,-379.58164017,8.639e-05,2]
[424933654,1781293849000,-1538.7351064,8.639e-05,2]
[424933656,1781293849000,-300.3970711,8.639e-05,2]
[424933658,1781293849000,-580.37950307,8.639e-05,2]
[424933659,1781293849000,-315.0,8.639e-05,2]
[424933657,1781293849000,-32.9229289,8.639e-05,2]
[424933661,1781293849000,-400.0,8.639e-05,2]
[424933666,1781293849000,-2203.687569,8.639e-05,2]
[424933665,1781293849000,-522.9232407,8.639e-05,2]
[424933660,1781293849000,-309.01557769,8.639e-05,2]
[424933662,1781293849000,-3200.0,8.639e-05,2]
[424933664,1781293849000,-934.87887553,8.639e-05,2]
[424933663,1781293849000,-630.25577962,8.639e-05,2]
[424933668,1781293850000,-254.13796248,8.639e-05,2]
[424933667,1781293850000,-151.41572856,8.639e-05,2]
[424933671,1781293851000,-9147.55601144,8.639e-05,2]
[424933670,1781293851000,-33055.96670889,8.639e-05,2]
[424933669,1781293851000,-795.03,8.627e-05,2]
[424933672,1781293873000,-2075.76036953,8.639e-05,2]
[424933673,1781293896000,-500.0,8.406e-05,2]
[424933674,1781293897000,150.0,8.154e-05,2]
[424933675,1781293948000,-500.0,8.406e-05,2]
[424933676,1781294002000,-500.0,8.406e-05,2]
[424933678,1781294002000,382.0,7.582e-05,2]
[424933677,1781294002000,382.0,7.564e-05,2]
[424933679,1781294002000,382.0,7.361e-05,2]
[424933680,1781294002000,382.0,7.542e-05,2]
[424933681,1781294002000,382.0,7.375e-05,2]
[424933682,1781294002000,382.0,7.45e-05,2]
[424933684,1781294002000,382.0,7.564e-05,2]
[424933686,1781294002000,382.0,7.505e-05,2]
[424933685,1781294002000,382.0,7.584e-05,2]
[424933689,1781294002000,382.0,7.399e-05,2]
[424933688,1781294002000,382.0,7.453e-05,2]
[424933690,1781294002000,382.0,7.359e-05,2]
[424933692,1781294002000,382.0,7.388e-05,2]
[424933691,1781294002000,382.0,7.451e-05,2]
[424933693,1781294002000,382.0,7.299e-05,2]
[424933683,1781294002000,382.0,7.515e-05,2]
[424933687,1781294002000,382.0,7.353e-05,2]
[424933697,1781294003000,382.0,7.513e-05,2]
[424933695,1781294003000,452.0,7.324e-05,2]
[424933694,1781294003000,382.0,7.483e-05,2]
[424933696,1781294003000,382.0,7.41e-05,2]
[424933698,1781294003000,382.0,7.419e-05,2]
[424933699,1781294003000,382.0,7.392e-05,2]
[424933702,1781294003000,382.0,7.485e-05,2]
[424933700,1781294003000,382.0,7.502e-05,2]
[424933701,1781294003000,382.0,7.36e-05,2]
[424933711,1781294055000,397.0,7.329e-05,2]
[424933712,1781294055000,429.0,7.412e-05,2]
[424933710,1781294055000,397.0,7.396e-05,2]
[424933709,1781294055000,397.0,7.56e-05,2]
[424933708,1781294055000,397.0,7.426e-05,2]
[424933707,1781294055000,397.0,7.417e-05,2]
[424933706,1781294055000,397.0,7.464e-05,2]
[424933705,1781294055000,397.0,7.588e-05,2]
[424933704,1781294055000,-382.0,7.608e-05,2]
[424933714,1781294124000,-382.0,7.615e-05,2]
[424933715,1781294141000,1621.0,8.886e-05,5]
[424933716,1781294176000,-382.0,7.617e-05,2]
[424933717,1781294229000,-382.0,7.646e-05,2]
[424933718,1781294237000,241.0,7.397e-05,2]
[424933719,1781294247000,2777.98,7.53e-05,2]
[424933721,1781294282000,-382.0,7.648e-05,2]
[424933722,1781294283000,75771.45,7.53e-05,2]
[424933727,1781294307000,385.0,7.587e-05,2]
[424933726,1781294307000,381.0,7.515e-05,2]
[424933724,1781294307000,381.0,7.543e-05,2]
[424933725,1781294307000,381.0,7.588e-05,2]
[424933728,1781294336000,-382.0,7.656e-05,2]
[424933729,1781294345000,412.0,7.557e-05,2]
[424933730,1781294346000,424.0,7.45e-05,2]